Cogmind - Beta 12 @@@ ROGUE MODE // 2023.11.29 @ 16:15:19 Player: ktur Result: Destroyed by H-55 Commando with Assault Rifle Performance ------------- Evolutions (2) 1000 Regions Visited (6) 1200 Robots Destroyed (83) 415 Value Destroyed (2867) 2867 Prototype IDs (48) 960 Alien Tech Used (0) 0 Bonus (-3834) -3834 TOTAL SCORE: 2608 Bonus ------- High Alert Combat Kills 290 Follower Combat Kills 315 Entered Garrisons 200 Aligned with FarCom 300 Friendly Fire -4939 Cogmind --------- Core Integrity 0/550 Matter 238/300 Energy 98/100 System Corruption 8% Temperature Cool (58) Movement Treading (160) Location -8/Garrison Parts ------- > --- POWER (1) -------- (None) > --- PROPULSION (2) --- Light Treads Light Treads > --- UTILITY (6) ------ Lightpack 2.0 Spectral Analyzer Improved Utility Shielding Advanced Powered Armor > --- WEAPON (2) ------- Missile Launcher Makeshift Axe > --- INVENTORY (40) --- Vortex Chain Reactor Enhanced Armored Medium Treads High-capacity Storage Unit Experimental Energy Well (600) High-capacity Matter Pod (200) Armor Integrity Analyzer Improved Utility Shielding Improved Energy Mantle Relay Coupler [C] (21) Relay Coupler [C] (21) Relay Coupler [C] (21) Relay Coupler [Swarmer] (59) Relay Coupler [Swarmer] (48) Relay Coupler [Swarmer] (40) Relay Coupler [Sentry] (28) Relay Coupler [Hunter] (17) Army-in-a-Box (30/30) Precision Phase Gun Heavy Assault Rifle Enhanced Autogun Heavy Mace Peak State ------------ > --- POWER ------------ Light Nuclear Core > --- PROPULSION ------- Light Treads Light Treads > --- UTILITY ---------- Lightpack 2.0 Experimental Energy Well Spectral Analyzer Improved Utility Shielding > --- WEAPON ----------- Precision Phase Gun Makeshift Axe > --- INVENTORY -------- Vortex Chain Reactor Light Treads Light Treads Light Treads Enhanced Armored Medium Treads High-capacity Storage Unit High-capacity Matter Pod Improved Utility Shielding Advanced Powered Armor Improved Energy Mantle Relay Coupler [C] Relay Coupler [C] Relay Coupler [Swarmer] Relay Coupler [Swarmer] Relay Coupler [Swarmer] Relay Coupler [Sentry] Relay Coupler [Hunter] Army-in-a-Box Heavy Assault Rifle Enhanced Autogun Missile Launcher Heavy Mace [Rating: 84] Favorites ----------- Power Light Nuclear Core Engine Improved Ion Engine Power Core Light Nuclear Core Propulsion Light Treads Treads Light Treads Wheel Wheel Utility Cargo Storage Unit Device Improved Energy Mantle Storage Cargo Storage Unit Processor Advanced Targeting Computer Hackware Hacking Suite Protection Light Armor Plating Weapon Assault Rifle Energy Gun Precision Phase Gun Ballistic Gun Assault Rifle Ballistic Cannon Light Cannon Launcher Rocket Launcher Impact Weapon Heavy Mace Slashing Weapon Makeshift Axe Special Melee Weapon Improved Datajack Build | -11 -10 -10 -10 -9 -8 -8 ------- Run | Jun Mat Min Exi Min Mat Gar Slots Evolved 4 | . . . . . 4 . Power . | . . . . . . . Propulsion . | . . . . . . . Utility 4 | . . . . . 4 . Weapon . | . . . . . . . Parts Attached 98 | 6 11 7 3 3 19 49 Power 8 | 1 2 . . 1 1 3 Engine 2 | 1 . . . 1 . . Core 6 | . 2 . . . 1 3 Reactor . | . . . . . . . Propulsion 19 | 2 . . . . 6 11 Treads 13 | 2 . . . . 1 10 Leg . | . . . . . . . Wheel 6 | . . . . . 5 1 Hover . | . . . . . . . Flight . | . . . . . . . Utility 27 | 1 2 2 1 . 7 14 Device 1 | . . . . . . 1 Storage 8 | 1 1 1 1 . . 4 Processor 3 | . . . . . 2 1 Hackware 1 | . . . . . . 1 Protection 14 | . 1 1 . . 5 7 Artifact . | . . . . . . . Weapon 44 | 2 7 5 2 2 5 21 Energy Gun 1 | . . . . . . 1 Energy Cannon . | . . . . . . . Ballistic Gun 18 | 2 4 3 1 . 1 7 Ballistic Cannon 5 | . 3 . . 2 . . Launcher 9 | . . 1 . . 1 7 Special Weapon . | . . . . . . . Impact Weapon 4 | . . . . . 2 2 Slashing Weapon 6 | . . 1 . . 1 4 Piercing Weapon . | . . . . . . . Special Melee Weapon 1 | . . . 1 . . . Unidentified Prototypes 5 | . . . . . 1 4 Parts Lost 21 | . 1 2 . . 7 11 Power 4 | . . 1 . . . 3 Propulsion 8 | . . . . . 3 5 Utility 7 | . 1 . . . 4 2 Weapon 2 | . . 1 . . . 1 Highest Loss Streak 4 | . 1 1 . . 2 4 To Critical Strikes . | . . . . . . . Average Slot Usage (%) 80 | . 90 88 77 78 77 74 Engine 2 | . 7 . . 7 3 . Core 3 | . 6 4 . . 5 5 Treads 20 | . 28 28 28 28 3 15 Wheel 2 | . . . . . 13 1 Storage 11 | . 14 14 14 14 9 9 Processor 4 | . . . . . 11 11 Protection 8 | . 5 13 6 . 13 12 Ballistic Gun 12 | . 23 17 15 20 1 4 Ballistic Cannon 3 | . 4 9 . 7 1 . Impact Weapon 1 | . . . . . 7 3 Slashing Weapon 2 | . . . . . 7 6 Special Melee Weapon 1 | . . . 12 . . . Naked Turns . | . . . . . . . Heaviest Build 166 | 13 30 47 143 153 166 154 Greatest Support 40 | 40 40 40 40 40 40 40 Greatest Overweight (x) 15 | . . 1 3 3 10 15 Average Overweight (x) 1 | . . . 1 3 5 1 Largest Inventory Capacity 40 | 8 15 20 30 30 30 40 Average Capacity 27 | 6 10 18 25 30 30 37 Most Carried 30 | 6 14 20 30 30 30 30 Average Carried 23 | 2 8 18 23 29 29 26 Final Capacity 40 | 8 15 20 30 30 30 40 Final Carried 30 | 6 14 20 30 30 30 27 Class Distribution -------------------- 66% | Hauler-Mutant 33% | Mutant Dominant Class ---------------- Mutant | -10/Materials Mutant | -10/Mines Hauler-Mutant | -10/Exiles Hauler-Mutant | -9/Mines Hauler-Mutant | -8/Materials Hauler-Mutant | -8/Garrison Resources | -11 -10 -10 -10 -9 -8 -8 ----------- Run | Jun Mat Min Exi Min Mat Gar Matter Collected 2345 | 203 335 211 20 64 252 1260 Remotely . | . . . . . . . Salvage Created 2664 | . 412 140 . . 1101 1011 Parts 164 | . 30 17 . . 51 66 Haulers Intercepted 3 | . 1 . . . 2 . Recyclers Shooed 1 | . 1 . . . . . Parts Field Recycled . | . . . . . . . Retrieved Matter . | . . . . . . . Parts Self-Destructed . | . . . . . . . Prevented . | . . . . . . . Kills | -11 -10 -10 -10 -9 -8 -8 ------- Run | Jun Mat Min Exi Min Mat Gar Combat Hostiles Destroyed 69 | . 10 7 . . 20 32 Melee 17 | . . 1 . . 14 2 Guns 16 | . 4 . . . . 12 Cannons 10 | . 6 3 . . 1 . AOE 23 | . . 3 . . 2 18 Classes Destroyed 13 | . 5 1 . . 5 2 Worker 1 | . . . . . 1 . Builder 2 | . . 1 . . 1 . Tunneler 1 | . . . . . 1 . Hauler 3 | . 1 . . . 2 . Recycler 4 | . 1 . . . 3 . Operator 1 | . 1 . . . . . Watcher 1 | . . . . . 1 . Swarmer 24 | . 3 3 . . 3 15 Grunt 31 | . 7 4 . . 14 6 Sentry 6 | . . . . . 2 4 Specialist 2 | . . . . . . 2 Hunter 3 | . . . . . 1 2 Programmer 3 | . . . . . . 3 Best Kill Streak 8 | . 3 4 . . 5 8 Combat Bots Only 8 | . 3 3 . . 4 8 Max Kills in Single Turn 3 | . 1 3 . . 3 3 Gunslinging 1 | . . . . . . 1 Exploded 3 | . . 3 . . 2 3 Melee 1 | . . 1 . . 1 1 Uniques/NPCs Destroyed 1 | . . . . . . 1 AZ-K3N (-8/Garrison) Combat | -11 -10 -10 -10 -9 -8 -8 -------- Run | Jun Mat Min Exi Min Mat Gar Damage Taken 4579 | . 654 220 . . 1213 2492 Core 651 | . 80 10 . . 179 382 Absorbed by Shields 41 | . . . . . . 41 Redirected to Shielding 103 | . . . . . . 103 Core Remaining (%) 82 | 100 . . . 64 . . Volleys Fired 160 | . 65 14 . 1 18 62 Largest 2 | . 2 1 . 1 1 2 Hottest 94 | . 55 35 . 35 39 94 Shots Fired 233 | . 96 14 . 1 18 104 Gun 147 | . 61 . . . 4 82 Cannon 61 | . 35 13 . 1 12 . Launcher 25 | . . 1 . . 2 22 Special . | . . . . . . . Kinetic 200 | . 96 13 . 1 16 74 Thermal 8 | . . . . . . 8 Explosive 25 | . . 1 . . 2 22 Electromagnetic . | . . . . . . . Robot Hit Streak 13 | . 12 13 . . 7 9 Robot Miss Streak 10 | . 10 1 . 1 2 5 Penetration Max . | . . . . . . . Secondary Targets 1 | . . . . . . 1 Max Gunslinging Chain 1 | . . . . . . 1 Shots Hit Robots 227 | . 53 14 4 . 53 103 Core Hits 112 | . 25 9 . 1 26 51 Critical Kills 2 | . . . . . 1 1 Critical Parts Destroyed 5 | . 1 . . . 3 1 Critical Strikes 15 | . 2 . . . 4 9 Burn 1 | . . . . . . 1 Destroy 3 | . 1 . . . . 2 Blast 1 | . 1 . . . . . Smash 4 | . . . . . 4 . Sever 6 | . . . . . . 6 Melee Attacks 143 | . . 2 4 . 68 69 Impact 57 | . . . . . 48 9 Slashing 82 | . . 2 . . 20 60 Piercing . | . . . . . . . Sneak Attacks 35 | . . . 4 . 9 22 Combat Hostiles . | . . . . . . . Follow-up Attacks 7 | . . . . . 5 2 Damage Inflicted 8696 | . 806 402 . 37 2766 4685 Guns 1538 | . 379 . . . 21 1138 Cannons 807 | . 408 205 . . 194 . Explosions 2186 | . . 127 . . 505 1554 Melee 4075 | . . 42 . . 2046 1987 Ramming 90 | . 19 28 . 37 . 6 Kinetic 2143 | . 787 205 . . 215 936 Thermal 202 | . . . . . . 202 Explosive 2186 | . . 127 . . 505 1554 Electromagnetic . | . . . . . . . Impact 1382 | . . . . . 1337 45 Slashing 2693 | . . 42 . . 709 1942 Piercing . | . . . . . . . Highest Corruption 8 | . . . . . . 8 Average Corruption 7 | . . . . . . 7 Corruption Purged . | . . . . . . . Corruption Blocked . | . . . . . . . Effects 73 | . . . . . . 73 Message Errors 21 | . . . . . . 21 Matter Fused 24 | . . . . . . 24 Heat Flow Errors 8 | . . . . . . 8 Energy Discharges 7 | . . . . . . 7 Parts Rejected 1 | . . . . . . 1 Data Loss (minor) 4 | . . . . . . 4 Data Loss (major) 5 | . . . . . . 5 Misfires 1 | . . . . . . 1 Alerts 1 | . . . . . . 1 Weapon Failures 1 | . . . . . . 1 Overload Shots . | . . . . . . . Overflow Damage 532 | . . . . . 387 145 Projectiles . | . . . . . . . Explosions 143 | . . . . . 9 134 Melee 389 | . . . . . 378 11 Knockbacks 13 | . 4 . . . 9 . Impact 3 | . . . . . 3 . Kinetic 8 | . 4 . . . 4 . Secondary 2 | . . . . . 2 . Self-Inflicted Damage 285 | . . 7 . . 55 223 Shots 10 | . . 1 . . 2 7 Rammed 14 | . 3 5 . 3 . 3 Targets Rammed 15 | . 3 6 . 3 . 3 Kicked . | . . . . . . . Crushed 1 | . . 1 . . . . Highest Temperature 458 | . 207 84 . . 32 458 Average Temperature 94 | . 96 34 . . 13 121 Received Heat Transfer 1200 | . 264 81 . . 549 306 Siege Activations . | . . . . . . . Robots Corrupted . | . . . . . . . Combat Hostiles . | . . . . . . . Parts Fried 9 | . . . . . 9 . Impact Corruptions 10 | . . . . . 10 . Robots Melted . | . . . . . . . Combat Hostiles . | . . . . . . . Parts Melted . | . . . . . . . Heat Transferred 179 | . . . . . . 179 Parts Sabotaged . | . . . . . . . Parts Stolen . | . . . . . . . Parts Stripped . | . . . . . . . Power Chain Reactions . | . . . . . . . Missiles Intercepted . | . . . . . . . Alert | -11 -10 -10 -10 -9 -8 -8 ------- Run | Jun Mat Min Exi Min Mat Gar Peak Influence 1421 | . 176 220 . 42 202 1421 Initial 117 | . . 12 . . . 117 Average 252 | . 104 36 . 2 102 707 Maximum Alert Level 4 | . . 1 . . 1 4 Low Security (%) 74 | 100 100 97 . 100 96 19 Level 1 4 | . . 2 . . 3 10 Level 2 7 | . . . . . . 23 Level 3 9 | . . . . . . 29 Level 4 5 | . . . . . . 17 Level 5 . | . . . . . . . High Security . | . . . . . . . Max Security . | . . . . . . . Squads Dispatched 6 | . 1 1 . . 4 . Investigation 1 | . . . . . 1 . Extermination . | . . . . . . . Reinforcement 3 | . 1 . . . 2 . Assault 1 | . . 1 . . . . Garrison 1 | . . . . . 1 . Intercept . | . . . . . . . Searches Triggered . | . . . . . . . Construction Impeded 1 | . . . . . 1 . Haulers Reinforced . | . . . . . . . Active Scanning Responses . | . . . . . . . Cargo Convoy Interrupts . | . . . . . . . Stealth | -11 -10 -10 -10 -9 -8 -8 --------- Run | Jun Mat Min Exi Min Mat Gar Distress Signals 6 | . 1 . . . 5 . Communications Jammed . | . . . . . . . Distress Signals . | . . . . . . . Times Spotted 101 | . 21 8 . . 32 40 Peak Tracking Total 7 | . 5 3 . . 7 6 Tactical Retreats 5 | . 2 1 . . . 2 Traps | -11 -10 -10 -10 -9 -8 -8 ------- Run | Jun Mat Min Exi Min Mat Gar Traps Triggered 6 | . 2 1 . . . 3 Indirectly . | . . . . . . . Trap Hack Attempts . | . . . . . . . Triggered . | . . . . . . . Disarmed . | . . . . . . . Reprogrammed . | . . . . . . . Reused . | . . . . . . . Traps Extracted . | . . . . . . . Installed . | . . . . . . . Triggered . | . . . . . . . Machines | -11 -10 -10 -10 -9 -8 -8 ---------- Run | Jun Mat Min Exi Min Mat Gar Machines Disabled 6 | . . 1 . . . 5 Max in Single Turn 2 | . . 1 . . . 2 Garrison Relay 2 | . . . . . . 2 Machines Repaired . | . . . . . . . Machines Sabotaged . | . . . . . . . Overloaded Fab Kills . | . . . . . . . Hacking | -11 -10 -10 -10 -9 -8 -8 --------- Run | Jun Mat Min Exi Min Mat Gar Machines Accessed 17 | . 6 1 2 . 2 6 Terminals 13 | . 6 . . . 1 6 Fabricators . | . . . . . . . Repair Stations . | . . . . . . . Recycling Units . | . . . . . . . Scanalyzers . | . . . . . . . Garrison Access 1 | . . . . . 1 . Total Hacks 31 | . 16 1 2 . 3 9 Successful 15 | . 7 1 2 . 2 3 Failed 16 | . 9 . . . 1 6 Catastrophic 2 | . . . . . . 2 Database Lockouts . | . . . . . . . Manual 5 | . 4 . 1 . . . Terminals 27 | . 16 . . . 2 9 Fabricators . | . . . . . . . Repair Stations . | . . . . . . . Recycling Units . | . . . . . . . Scanalyzers . | . . . . . . . Garrison Access 1 | . . . . . 1 . Terminal Hacks 13 | . 6 1 2 . 1 3 Record 1 | . . . 1 . . . Robot Analysis 2 | . 2 . . . . . Prototype ID Bank 3 | . 2 . . . 1 . Open Door 3 | . . 1 . . . 2 Locate Traps 2 | . 2 . . . . . Security Stations 1 | . . . . . . 1 EX-Prototype ID Bank 1 | . . . 1 . . . Fabricator Hacks . | . . . . . . . Repair Station Hacks . | . . . . . . . Recycling Unit Hacks . | . . . . . . . Scanalyzer . | . . . . . . . Garrison Access Hacks 1 | . . . . . 1 . Unlock Access 1 | . . . . . 1 . Unauthorized Hacks 1 | . 1 . . . . . Terminals 1 | . 1 . . . . . Operators 1 | . 1 . . . . . Fabricators . | . . . . . . . Repair Stations . | . . . . . . . Recycling Units . | . . . . . . . Scanalyzers . | . . . . . . . Garrison Access . | . . . . . . . Data Cores Recovered . | . . . . . . . Used . | . . . . . . . Hacking Detections 11 | . 6 . . . 1 4 Full Trace Events 2 | . 1 . . . 1 . Feedback Events . | . . . . . . . Feedback Blocked . | . . . . . . . Robot Schematics Acquired . | . . . . . . . Robots Built . | . . . . . . . Authchips . | . . . . . . . Time . | . . . . . . . Total Robot Build Rating . | . . . . . . . Part Schematics Acquired . | . . . . . . . Parts Built . | . . . . . . . Authchips . | . . . . . . . Time . | . . . . . . . Total Part Build Rating . | . . . . . . . Parts Repaired . | . . . . . . . Time . | . . . . . . . Parts Recycled . | . . . . . . . Recycled Matter . | . . . . . . . Retrieved Matter . | . . . . . . . Retrieved Components . | . . . . . . . Parts Scanalyzed . | . . . . . . . Part Schematics Acquired . | . . . . . . . Parts Damaged . | . . . . . . . Bothacking | -11 -10 -10 -10 -9 -8 -8 ------------ Run | Jun Mat Min Exi Min Mat Gar Used RIF Installer . | . . . . . . . Robots Hacked 4 | . . . 4 . . . Non-combat 3 | . . . 3 . . . Combat 1 | . . . 1 . . . Robot Hacks Applied 4 | . . . 4 . . . parse_system 4 | . . . 4 . . . Relay Couplers Released 10 | . . . . . . 10 Machine Destruction 7 | . . . . . . 7 Programmers 3 | . . . . . . 3 Fabnet Peak Effective % . | . . . . . . . Robots Rewired 4 | . . . . . . 4 Allies Hacked 1 | . . . . . . 1 Hacks Repelled . | . . . . . . . Allies | -11 -10 -10 -10 -9 -8 -8 -------- Run | Jun Mat Min Exi Min Mat Gar Total Allies 7 | . . 1 . . . 6 Largest Group 4 | . . 1 1 1 1 4 Highest-Rated Group 195 | . . 31 31 31 31 195 Highest-Rated Ally 179 | . . 31 31 31 31 179 Total Orders . | . . . . . . . Ally Attacks 36 | . . 3 . 6 3 24 Total Damage 626 | . . 41 . 87 21 477 Kills 10 | . . 1 . 2 1 6 Allies Corrupted . | . . . . . . . Allies Melted . | . . . . . . . Intel | -11 -10 -10 -10 -9 -8 -8 ------- Run | Jun Mat Min Exi Min Mat Gar Robot Analysis Total 2 | . 2 . . . . . Derelict Logs Recovered 2 | . . 1 . 1 . . Drone Launches . | . . . . . . . Drone Recoveries . | . . . . . . . Exploration | -11 -10 -10 -10 -9 -8 -8 ------------- Run | Jun Mat Min Exi Min Mat Gar Turns Passed 8073 | 90 868 1259 964 1529 1194 2169 Spaces Moved 2971 | 48 411 564 311 375 379 883 Core 2 | 1 . . . . . 1 Treads 2542 | 47 411 564 311 375 43 791 Legs . | . . . . . . . Wheels 427 | . . . . . 336 91 Hover . | . . . . . . . Flight . | . . . . . . . Fastest Speed 50 | 50 160 160 240 400 160 160 Average Speed 226 | 157 160 209 301 400 208 178 Slowest Speed 730 | 160 160 240 400 400 400 730 Overloaded Moves . | . . . . . . . Propulsion Burnouts . | . . . . . . . Robots Hopped 1 | . . 1 . . . . Cave-ins Triggered . | . . . . . . . Exploration Rate (%) 62 | 3 67 98 70 88 34 80 Regions Visited 6 Branch Regions 3 Pre-discovered Areas 1 | . . . 1 . . . Known Exits Taken 1 | . . . . . 1 . Unknown Exits Taken 5 | 1 1 1 1 1 . . Scrap Searched 3 | . . 1 . 2 . . Spaces Dug 22 | . . . . . 5 17 Terrain Destroyed 148 | . . 8 . . 34 106 Melee 22 | . . . . . 5 17 Projectile 2 | . . . . . 2 . AOE 124 | . . 8 . . 27 89 Terrain Rammed . | . . . . . . . Walls Destroyed . | . . . . . . . Machines Disabled . | . . . . . . . Actions | -11 -10 -10 -10 -9 -8 -8 --------- Run | Jun Mat Min Exi Min Mat Gar Total 3927 | 59 527 622 340 398 674 1307 Wait 371 | . 17 15 . 7 176 156 Move 2964 | 47 410 561 310 374 379 883 Hop 1 | . . 1 . . . . Pick Up 92 | 6 13 11 19 4 13 26 Fast Attach 32 | 6 5 1 1 3 5 11 Attach 29 | . . 3 . . 11 15 Detach 8 | . . 1 . . 3 4 Swap 37 | . 6 3 2 . 3 23 Drop 50 | . 8 4 4 6 9 19 Fire 160 | . 65 14 . 1 18 62 Melee 130 | . . 2 4 . 57 67 Ram . | . . . . . . . Kick . | . . . . . . . Crush 15 | . 3 6 . 3 . 3 Escape Stasis . | . . . . . . . Rewire 38 | . . . . . . 38 Trap . | . . . . . . . Miscellaneous . | . . . . . . . Route ------- -11/Junkyard -10/Materials (discovered 3 exits: [*Mat x2] / *Min) -10/Mines (discovered 3 exits: [*Mat x2] / *Exi) -10/Exiles -9/Mines -8/Materials (discovered 2 exits: [*Sto] / Gar) -8/Garrison (discovered 3 exits: [*Mat x3]) History --------- Turn | Location | Event 7 | -11/Junkyard | Discovered new exit (range 15) 91 | -11/Junkyard | Entered Materials 300 | -10/Materials | Build established: Mutant 334 | -10/Materials | Discovered new exit (range 8) 764 | -10/Materials | Discovered new exit (range 3) 853 | -10/Materials | Discovered new exit (range 14) 959 | -10/Materials | Entered Mines 966 | -10/Mines | Received a Rocket Launcher from a helpful Derelict 1029 | -10/Mines | Assembled infested the area 1034 | -10/Mines | Assisted by a Guerilla fighting off Assembled 1078 | -10/Mines | Met a Derelict bent on vengeance 1207 | -10/Mines | Discovered new exit (range 9) 1299 | -10/Mines | A weapon hastily lodged in a ceiling crevice suddenly fell to the ground 1355 | -10/Mines | Met a Derelict who couldn't figure out how to use a Trap Extractor 1640 | -10/Mines | Met a Derelict testing a Signal Generator 1709 | -10/Mines | Discovered new exit (range 9) 2206 | -10/Mines | Deemed a non-threat by the Exiles lab entrance 2209 | -10/Mines | Discovered new exit (range 5) 2218 | -10/Mines | Entered Exiles 2218 | -10/Exiles | Accompanied by 1 ally 2278 | -10/Exiles | Met 8R-AWN 2322 | -10/Exiles | Met EX-HEX 2449 | -10/Exiles | Met EX-DEC 2515 | -10/Exiles | Learned location of Zion (-6) 2556 | -10/Exiles | Met EX-BIN 2595 | -10/Exiles | Aligned with FarCom system 2597 | -10/Exiles | Given EX-Vault access code 2657 | -10/Exiles | Opened EX-Vault 2778 | -10/Exiles | Found Army-in-a-Box 2787 | -10/Exiles | Found Lightpack 2.0 2808 | -10/Exiles | Found Supersonic Drone Bay 2893 | -10/Exiles | Warned to stay clear of 0b10 Research branches 2972 | -10/Exiles | Build established: Hauler-Mutant 3149 | -10/Exiles | Discovered new exit (range 10) 3182 | -10/Exiles | Stole three prototypes: Lightpack 2.0, Supersonic Drone Bay, Army-in-a-Box 3182 | -10/Exiles | Entered Mines 3182 | -9/Mines | Accompanied by 1 ally 3194 | -9/Mines | Learned Materials emergency access door positions 4671 | -9/Mines | Discovered new exit (range 9) 4711 | -9/Mines | Entered Materials 4711 | -8/Materials | Accompanied by 1 ally 4711 | -8/Materials | Evolved 4 slots: Utility x4 4711 | -8/Materials | Discovered new exit (range 11) 5733 | -8/Materials | Garrison activated, responded to threat 5905 | -8/Materials | Identified exit to Garrison 5905 | -8/Materials | Entered Garrison 5974 | -8/Garrison | Lost 4 parts (1p1n1u1w) 6361 | -8/Garrison | Lost 3 parts (1p2n) 6372 | -8/Garrison | Destroyed 8 combat bots 6464 | -8/Garrison | Discovered new exit (range 12) 6532 | -8/Garrison | Core integrity fell below 50% 6699 | -8/Garrison | Triggered checkpoint 6787 | -8/Garrison | Discovered new exit (range 11) 6881 | -8/Garrison | Triggered checkpoint 6965 | -8/Garrison | Discovered new exit (range 12) 7050 | -8/Garrison | Triggered checkpoint 7180 | -8/Garrison | Rescued AZ-K3N 7316 | -8/Garrison | Triggered checkpoint 7323 | -8/Garrison | AZ-K3N assimilated hostile G-47 Trooper 7370 | -8/Garrison | Learned Materials security intel 7376 | -8/Garrison | Garrison Relay disabled 7399 | -8/Garrison | Found Adv. Powered Armor 7483 | -8/Garrison | Destroyed AZ-K3N 7503 | -8/Garrison | Found Prototype Reactor 7523 | -8/Garrison | Found Prototype Processor 7523 | -8/Garrison | Identified Spectral Analyzer 7556 | -8/Garrison | Triggered checkpoint 7722 | -8/Garrison | Garrison Relay disabled 8053 | -8/Garrison | Core integrity fell below 20% 8074 | -8/Garrison | Destroyed by H-55 Commando with Assault Rifle Last Messages --------------- 08050_ Destroyed Carbon-fiber Leg. 08050_ H-55 Commando knocked back. 08052_ HV Slug penetrates Machine. 08052_ 7S-I7M(h) destroyed. 08053_ System corrupted: Heat flow error (+208). 08055_ Penetrated by Slug. 08055_ Slug penetrates CO-X7R(b). 08055_ CO-X7R(b) destroyed. 08056_ Slammed into H-55 Commando. 08058_ Penetrated by Slug. 08059_ Slammed into H-55 Commando. 08061_ Penetrated by Slug. 08063_ Slug penetrates H-55 Commando. 08064_ Penetrated by Slug. 08064_ Lgt. Treads destroyed. 08066_ Penetrated by Slug. 08067_ H-55 Commando destroyed. 08070_ Lgt. Nuclear Core destroyed. 08070_ Destroyed Lgt. Nuclear Core. 08073_ H-55 Commando Lgt. Nuclear Core severed. Map ----- +----------------------------------------------------+ | ??????????????????????????????# ## # = ###?? | | ??????????????????????????????# ## # !##### | | ??????????????????????????????# | | ??????????????????????????????# | | ?????????????????????????????## ##### | | ?????????????????????????????# # [ # ## ##???? | | ?????????????????????????????# * ## ## #????? | | ????????????????????????????#### ######## #????? | | ????????????????????????????## [ ###??# #????? | | ????????????????????????????# #??# #????? | | ???????????????????????????## # *# ##??# #????? | | ??????????????#####????????# #???# #????? | | ??????????#####"#"########## ##???# ###### | | ??????????# ! ####???# ^ | | ??????????# #?????# | | ?????????#" ############## # ## ##?????######### | | ?????????## #????????????###### #??????????????? | | ??????????# #?????????????????# #??????????????? | | ??????????# #?????????????????# #??????????????? | | ??????????# #?????????????????# #??????????????? | | ??????????# #?????############# ##?????????????? | | ??????????# #?????#""" "" "## "#?????????????? | | ??????????# #?????#"""*[[= ";# ##?????????????? | | ??????????# ###???#"" ""#" #??????????????? | | ??????????# #???#"= ! ## #??????????????? | | ??????????# #???# =% @h ] #" #??????????????? | | ??????????# #???# [[ [ ## ##?????????????? | | ??????????# ###???#=!%=%= !"## "#?????????????? | | ??????????# #?????#=%= * % ! # ##?????????????? | | ??????????# #?????# [=] | ## #??????????????? | | ??????????# #?????#" !% ## #??????????????? | | ??????????# #?????###* #" ##?????????????? | | ??????????# #???????# #### "#?????????????? | | ??????????# #???????### ###??# ##?????????????? | | #####"""### [############;###### #??????????????? | | !==[# #??????????????? | | * !" #??????????????? | | ######### ######################??????????????? | | ????????# # # #????????????????????????????????? | | ????????# + + #????????????????????????????????? | | ????????##"# ####????????????????????????????????? | | ????????# # # #????????????????????????????????? | | ????????# # " #????????????????????????????????? | | ????????#########????????????????????????????????? | | ?????????????????????????????????????????????????? | | ?????????????????????????????????????????????????? | | ?????????????????????????????????????????????????? | | ?????????????????????????????????????????????????? | | | | | +----------------------------------------------------+ Best States ------------- Heat Dissipation 31 Energy Generation 14 Energy Capacity 265 Matter Stores 300 Matter Capacity 300 Sight Range 24 Terrain Scan Density 10 Armor Coverage 525 Utility Shielding 66 Evasion (%) 40 Targeting Accuracy 8 Recoil Reduction 2 Offensive Hacking 10 Item Schematics ----------------- None Robot Schematics ------------------ None Fabricated ------------ Nothing Alien Tech Used ----------------- None Achievements -------------- None Challenges ------------ None Game ------ Seed RestorationHoverBeamcaster Manual? 0 Play Time 00:32:43 Cumulative 738.7 hours Start 2023.11.29 @ 15:43:58 End 2023.11.29 @ 16:15:19 Sessions 1 Manual Loads 0 Difficulty Rogue Special Mode None Game No. 660 Rogue 660 Adventurer 0 Explorer 0 Win Type - Total 37 Types 14/3/10/2/0/0/5/2/1 Lore% 97 Gallery% 96 Achievement% 84 Wizard Run 0 Options --------- ASCII 0 Keyboard 0 Movement Numpad Keybinds 0 Fullscreen 1 Font 18/Smallcaps Map View 76x50 Tactical HUD 1 Map Filters NONE Filters NONE Steam 1 RUN: b70b0466-6e54-4c8b-9016-ca53a7741647